bitfinex-derivatives/quotes_ETHF0:USTF0_20241008
["timestamp","ask_amount","ask_price","bid_price","bid_amount"]
[1728346130479,0.41188,2428.3,2428.1,0.4023]
[1728346130771,1.41817,2428.6,2428.1,0.8142]
[1728346130966,0.41186,2428.4,2428.1,0.8142]
[1728346131170,0.41187,2428.3,2428.1,0.8142]
[1728346132074,0.3886,2428.6,2428.1,0.4023]
[1728346132280,1.02959,2428.5,2428.1,0.4023]
[1728346132577,0.41188,2428.3,2428.1,0.4023]
[1728346132777,0.41188,2428.2,2428.1,0.4023]
[1728346132965,0.41188,2428.3,2428.1,0.4023]
[1728346133172,0.41188,2428.2,2428.1,0.4023]
[1728346133372,0.421,2428.4,2428.1,0.4023]
[1728346133568,0.41189,2428.2,2428.0,3.61971]
[1728346133870,0.41189,2428.2,2428.1,0.3852]
[1728346134380,0.41196,2427.8,2427.7,3.2078]
[1728346134580,3.21,2428.0,2427.5,0.3852]
[1728346134879,0.41199,2427.6,2427.5,0.3852]
[1728346136375,1.02989,2427.8,2427.5,0.3852]
[1728346136376,0.41198,2427.7,2427.5,0.3852]
[1728346136579,0.7887,2427.9,2427.5,0.3852]
[1728346136781,0.41198,2427.7,2427.5,0.7972]
[1728346136977,1.81857,2427.9,2427.5,0.79719]
[1728346136978,0.41196,2427.8,2427.5,0.79719]
[1728346137878,0.41196,2427.8,2427.6,0.41198]
[1728346138478,0.41196,2427.8,2427.5,0.79719]
[1728346138679,0.41195,2427.8,2427.5,0.79719]
[1728346139186,0.41197,2427.7,2427.5,0.79719]
[1728346139382,0.7887,2427.9,2427.5,0.79719]
[1728346139585,0.41197,2427.8,2427.5,0.79719]
[1728346139785,0.41195,2427.8,2427.6,0.41198]
[1728346140583,0.41192,2428.0,2427.7,3.61976]
[1728346140887,0.80311,2428.1,2427.8,0.41194]
[1728346141179,0.41193,2428.0,2427.7,3.61976]
[1728346141381,0.41194,2427.9,2427.7,3.2078]
[1728346141588,0.41194,2427.9,2427.7,3.61976]
[1728346142686,0.41195,2427.8,2427.7,3.2078]
[1728346143685,0.41195,2427.9,2427.7,3.2078]
[1728346143888,0.41195,2427.8,2427.7,3.2078]
[1728346144088,0.41198,2427.7,2427.5,0.3852]
[1728346144387,1.02985,2427.9,2427.5,0.3852]
[1728346144578,0.39289625,2427.8,2427.5,0.3852]
[1728346144780,0.79389625,2427.8,2427.5,0.3852]
[1728346145292,0.41199,2427.6,2427.5,0.3852]
[1728346146275,1.82380625,2427.8,2427.5,0.3852]
[1728346146582,0.41198,2427.7,2427.5,0.3852]
[1728346146789,0.41199,2427.6,2427.5,0.3852]
[1728346150074,0.79389625,2427.8,2427.5,0.3852]
[1728346150277,1.02983,2428.0,2427.5,0.3852]
[1728346150477,1.02983,2428.0,2427.7,0.41196]
[1728346150478,0.41194,2427.9,2427.7,0.41196]
[1728346151184,2.20308,2428.1,2427.6,6.4178]
[1728346151384,0.41193,2428.0,2427.8,0.41195]
[1728346151783,0.3914,2428.1,2427.6,6.4178]
[1728346151983,0.41195,2427.8,2427.6,6.82978]
[1728346152687,1.42118,2428.1,2427.6,6.4178]
[1728346152990,1.42118,2428.1,2427.8,0.41195]
[1728346153295,1.42118,2428.1,2427.6,6.4178]
[1728346153696,0.41194,2427.9,2427.7,0.41196]
[1728346154091,0.41194,2427.9,2427.7,4.53116]
[1728346154389,0.41195,2427.8,2427.6,6.82978]
[1728346154791,0.41195,2427.8,2427.7,4.1192]
[1728346155599,0.41197,2427.7,2427.6,3.61979]
[1728346155989,0.41197,2427.7,2427.6,3.2078]
[1728346156296,3.21,2428.0,2427.2,7.7863]
[1728346156491,0.41204,2427.3,2427.2,4.39175]
[1728346156795,0.41204,2427.3,2427.2,8.73759815]
[1728346157100,0.41203,2427.4,2427.3,0.41204]
[1728346157395,0.41202,2427.5,2427.3,0.41204]
[1728346157592,0.41202,2427.5,2427.4,0.41202]
[1728346157988,0.41196,2427.8,2427.4,4.1192]
[1728346158187,0.41199,2427.6,2427.5,6.4178]
[1728346158400,0.41197,2427.8,2427.5,3.2078]
[1728346158593,0.41197,2427.8,2427.6,0.41199]
[1728346158792,0.41197,2427.8,2427.7,0.80757]
[1728346158994,0.41197,2427.8,2427.7,0.3956]
[1728346159688,0.41195,2427.8,2427.7,0.3956]
[1728346159892,0.3914,2428.1,2427.7,0.80757]
[1728346160094,0.41195,2427.8,2427.7,0.3956]
[1728346160692,0.41199,2427.6,2427.1,3.2078]
[1728346160900,0.41197,2427.7,2427.3,0.4185]
[1728346161105,0.3905,2427.8,2427.4,3.61981]
[1728346161303,0.41199,2427.6,2427.4,3.61981]
[1728346161502,0.41199,2427.6,2427.4,3.2078]
[1728346161899,0.3905,2427.8,2427.4,3.2078]
[1728346162094,0.412,2427.6,2427.4,3.2078]
[1728346162402,0.412,2427.5,2427.4,3.2078]
[1728346163707,0.3905,2427.8,2427.4,3.2078]
[1728346163899,0.412,2427.5,2427.4,3.2078]
[1728346166500,0.412,2427.5,2427.3,0.4185]
[1728346166501,0.41202,2427.4,2427.3,0.4185]
[1728346166805,0.41206,2427.2,2427.0,5.27788]
[1728346166998,0.41206,2427.2,2427.1,0.4018]
[1728346167197,1.03003,2427.5,2427.0,5.27788]
[1728346167198,0.41207,2427.1,2427.0,3.2078]
[1728346167400,0.83067,2427.1,2427.0,3.2078]
[1728346167802,1.03029,2426.9,2426.5,0.207]
[1728346168004,0.41222,2426.2,2426.1,0.207]
[1728346168207,1.0304,2426.6,2425.8,0.4018]
[1728346168208,3.2078,2426.3,2425.8,0.4018]
[1728346168504,0.41228,2425.9,2425.8,0.4018]
[1728346168900,0.46867959,2425.9,2425.8,0.4018]
[1728346169298,0.46867959,2425.9,2425.6,0.79392]
[1728346169507,0.46867959,2425.9,2425.6,1.19302]
[1728346170010,0.05639959,2425.8,2425.6,1.19302]
[1728346170205,0.05639959,2425.8,2425.6,0.7807]
[1728346170402,0.05639959,2425.8,2425.7,0.41231]
[1728346173003,0.05639959,2425.8,2425.7,4.53471]
[1728346173408,0.05639959,2425.8,2425.7,7.74471]
[1728346174610,0.41218,2426.5,2426.2,0.41221]
[1728346175007,6.8286,2426.7,2426.2,0.41221]
[1728346175203,6.8286,2426.7,2426.0,3.21]
[1728346175511,0.4122,2426.4,2426.2,0.41222]
[1728346175711,0.4122,2426.4,2426.1,0.41224]
[1728346176016,6.8286,2426.7,2425.8,3.21]
[1728346176216,0.41218,2426.5,2426.2,0.41222]
[1728346176511,0.41218,2426.5,2426.3,0.79851]
[1728346176711,0.41219,2426.4,2426.3,0.3863]
[1728346176909,7.85898,2426.7,2426.3,0.3863]
[1728346177109,0.41219,2426.4,2426.3,0.3863]
[1728346177811,0.41218,2426.5,2426.3,0.3863]
[1728346178404,0.41219,2426.4,2426.3,0.3863]
[1728346179108,4.1216,2426.4,2425.9,3.2078]
[1728346179415,0.41223,2426.2,2425.9,0.41227]
[1728346179917,3.6259,2426.3,2425.8,0.4095]
[1728346180107,0.82812,2426.3,2426.0,0.41225]
[1728346180507,0.4159,2426.3,2426.0,0.41225]
[1728346180913,0.82812,2426.3,2426.0,0.41225]
[1728346181317,0.4159,2426.3,2426.0,0.41225]
[1728346181519,0.41223,2426.2,2426.0,0.41225]
[1728346181918,0.41223,2426.2,2425.8,0.4095]
[1728346182120,0.41223,2426.2,2425.9,0.41227]
[1728346182615,0.4159,2426.3,2425.8,0.4095]
[1728346182824,0.41225,2426.1,2425.8,0.82178]
[1728346183014,0.41227,2426.0,2425.8,0.4095]
[1728346183412,0.41227,2426.0,2425.8,0.82179]
[1728346184015,0.41225,2426.1,2425.9,0.41228]
[1728346184422,0.41225,2426.1,2425.8,0.4095]
[1728346185019,0.41225,2426.1,2425.9,0.41227]
[1728346185827,0.4159,2426.3,2425.8,0.4095]
[1728346186326,0.82812,2426.3,2425.8,0.4095]
[1728346186624,0.4159,2426.3,2426.1,0.41223]
[1728346186827,0.4159,2426.3,2425.8,0.4095]
[1728346187018,0.4159,2426.3,2425.9,3.2078]
[1728346187215,0.41219,2426.5,2426.2,0.41222]
[1728346187414,0.41219,2426.5,2425.9,8.32127428]
[1728346187728,0.41219,2426.5,2426.2,0.41221]
[1728346189327,0.83737,2426.6,2426.3,0.4122]
[1728346189534,40.8,2427.3,2426.2,1.656]
[1728346189728,0.3901,2427.2,2426.7,3.21]
[1728346190037,0.4047,2427.5,2427.3,0.41203]
[1728346190328,0.4047,2427.5,2427.3,0.41204]
[1728346190531,0.80209,2427.6,2427.3,0.41203]
[1728346190829,0.3901,2427.6,2427.2,3.21]
[1728346191029,0.3901,2427.6,2427.4,0.41201]
[1728346191229,0.3901,2427.6,2427.2,3.21]
[1728346191430,0.3901,2427.6,2427.0,4.8638]
[1728346192028,0.3901,2427.6,2427.4,0.41202]
[1728346192232,0.3901,2427.6,2427.5,0.412]
[1728346192424,0.3901,2427.6,2427.4,0.41201]
[1728346192831,0.41195,2427.9,2427.2,3.21]
[1728346193035,0.41195,2427.9,2427.6,0.41198]
[1728346193337,0.41195,2427.9,2427.5,0.41199]
[1728346194533,0.41195,2427.9,2427.4,0.4193]
[1728346194534,0.412,2427.6,2427.4,0.4193]
[1728346195933,0.8082,2428.0,2427.4,0.4193]
[1728346196132,0.41199,2427.6,2427.4,0.4193]
[1728346196340,0.41198,2427.7,2427.4,0.83132]
[1728346196534,0.41199,2427.6,2427.4,0.4193]
[1728346197146,0.41198,2427.7,2427.4,4.04131]
[1728346198243,0.41198,2427.7,2427.4,3.6293]
[1728346198437,1.83803,2428.0,2427.4,0.4193]
[1728346198630,0.41199,2427.6,2427.4,0.4193]
[1728346198836,0.412,2427.6,2427.4,0.4193]
[1728346199138,0.41202,2427.5,2427.0,3.21]
[1728346199332,0.41202,2427.4,2427.1,2.06806]
[1728346200137,0.41202,2427.5,2427.1,2.06806]
[1728346200535,0.41202,2427.5,2427.2,0.41205]
[1728346200837,1.83803,2428.0,2427.4,3.622]
[1728346201038,0.41198,2427.7,2427.4,3.62202]
[1728346201335,0.41198,2427.7,2427.4,3.62201]
[1728346201336,0.41197,2427.7,2427.4,3.62201]
[1728346201542,0.8082,2428.0,2427.4,3.21]
[1728346201935,0.41197,2427.7,2427.4,3.62201]
[1728346202137,0.41196,2427.8,2427.5,0.412]
[1728346202336,0.8082,2428.0,2427.4,3.62201]
[1728346202337,0.41198,2427.7,2427.4,3.62201]
[1728346202537,0.8082,2428.0,2427.4,3.21]
[1728346202844,0.8082,2428.0,2427.5,0.412]
[1728346203042,0.8082,2428.0,2427.4,3.21]
[1728346203249,0.41197,2427.7,2427.4,3.62201]
[1728346203431,0.8082,2428.0,2427.4,3.21]
[1728346203640,0.41189,2428.2,2427.9,3.62194]
[1728346203844,1.0296,2428.5,2428.0,0.41191]
[1728346203845,0.41187,2428.3,2428.0,0.41191]
[1728346204842,1.4394,2428.5,2428.0,0.41191]
[1728346205143,0.41187,2428.3,2427.9,3.21]
[1728346205640,1.4394,2428.5,2428.0,0.41191]
[1728346205841,0.41187,2428.3,2428.0,0.41191]
[1728346206156,0.41186,2428.4,2428.1,0.4119]
[1728346206447,0.4098,2428.5,2427.7,4.864]
[1728346206640,1.0297,2428.3,2427.8,0.41195]
[1728346206839,0.41192,2428.0,2427.8,0.41195]
[1728346207039,0.41192,2428.0,2427.7,5.27596]
[1728346207444,0.41192,2428.0,2427.7,4.864]
[1728346207748,0.41192,2428.0,2427.8,0.41195]
[1728346207948,0.41192,2428.0,2427.7,5.27596]
[1728346208346,4.2375,2428.3,2427.7,5.27596]
[1728346208347,0.41194,2427.9,2427.7,4.864]
[1728346208548,0.41193,2428.0,2427.7,4.864]
[1728346208853,0.4098,2428.5,2427.9,0.41193]
[1728346208854,1.02966,2428.4,2427.9,0.41193]
[1728346209244,0.41191,2428.1,2427.9,0.41193]
[1728346210649,0.41191,2428.1,2427.7,4.864]
[1728346210953,0.41191,2428.1,2427.9,0.41193]
[1728346211347,1.02966,2428.4,2427.7,4.864]
[1728346211650,0.4098,2428.5,2427.9,3.21]
[1728346211851,4.0172,2428.6,2427.9,3.21]
[1728346211852,0.41186,2428.4,2427.9,3.21]
[1728346212147,0.41186,2428.4,2428.2,0.41188]
[1728346212346,0.41184,2428.5,2428.2,0.41188]
[1728346212539,8.1348,2428.6,2428.2,0.41188]
[1728346212742,0.41186,2428.4,2428.2,0.41188]
[1728346214254,0.41186,2428.4,2428.1,0.41189]
[1728346214548,0.41186,2428.4,2428.2,0.4162]
[1728346215053,0.41186,2428.4,2428.2,0.82808]
[1728346215651,0.41186,2428.4,2428.2,0.4162]
[1728346215948,0.41187,2428.3,2428.2,0.4162]
[1728346219852,1.02962,2428.5,2427.9,3.21]
[1728346220149,3.2078,2428.3,2427.7,4.03146]
[1728346220355,0.41193,2428.0,2427.7,4.03146]
[1728346220945,1.02973,2428.2,2427.8,0.41195]
[1728346221149,0.4144,2428.3,2427.9,3.62192]
[1728346221349,0.41188,2428.3,2428.1,0.41189]
[1728346221651,0.41188,2428.3,2428.2,0.3974]
[1728346222248,0.41186,2428.4,2428.2,0.80928]
[1728346222454,4.0172,2428.6,2428.2,0.80928]
[1728346222455,4.0172,2428.6,2428.2,0.3974]
[1728346222750,0.41187,2428.3,2428.2,0.3974]
[1728346222949,5.04676,2428.6,2428.2,0.3974]
[1728346223149,0.41178,2428.9,2428.6,0.41181]
[1728346223349,0.41178,2428.9,2428.2,0.3974]
[1728346223350,0.79904,2429.1,2428.8,3.21]
[1728346223551,0.3873,2429.1,2428.9,0.41176]
[1728346223765,0.41169,2429.4,2429.0,3.21]
[1728346223950,3.2078,2429.5,2429.0,3.21]
[1728346223951,0.41171,2429.3,2429.0,3.21]
[1728346224150,3.5951,2429.5,2429.0,3.21]
[1728346224349,0.41174,2429.1,2428.9,0.3974]
[1728346224848,0.41173,2429.2,2428.9,0.3974]
[1728346225556,3.5951,2429.5,2428.9,0.3974]
[1728346225857,3.5951,2429.5,2429.0,3.62175]
[1728346225858,0.4117,2429.3,2429.0,3.62175]
[1728346226362,3.5951,2429.5,2429.0,3.21]
[1728346226559,0.41164,2429.7,2429.4,3.62168]
[1728346226762,1.23587,2430.2,2429.6,3.62165]
[1728346226763,0.4116,2429.9,2429.6,3.62165]
[1728346226957,0.3867,2430.1,2429.2,1.653]
[1728346226958,0.3867,2430.1,2429.8,3.21]
[1728346227151,3.6052,2430.4,2430.0,3.21]
[1728346227152,3.2078,2430.4,2430.0,3.21]
[1728346227455,0.41147,2430.7,2430.4,0.41151]
[1728346227762,3.2078,2430.9,2430.3,3.21]
[1728346227955,3.61923,2430.9,2430.6,3.21]
[1728346228155,0.41143,2430.9,2430.6,3.21]
[1728346229063,4.23628,2431.2,2430.6,3.21]
[1728346229259,0.41146,2430.8,2430.6,3.21]
[1728346229860,4.23628,2431.2,2430.6,3.21]
[1728346230064,0.41143,2430.9,2430.8,3.21]
[1728346230452,0.4114,2431.1,2430.8,3.21]
[1728346230859,0.41143,2430.9,2430.8,3.21]
[1728346232464,0.41148,2430.6,2430.5,3.2078]
[1728346232662,3.2078,2431.2,2430.4,2.0473]
[1728346232862,0.41149,2430.5,2430.4,2.0473]
[1728346233164,3.2078,2431.0,2430.4,5.2573]
[1728346233368,0.41146,2430.8,2430.7,3.21]
[1728346233670,1.02845,2431.2,2430.7,3.21]
[1728346233867,0.41141,2431.1,2430.9,3.21]
[1728346234070,0.41139,2431.2,2430.9,3.21]
[1728346234369,0.41139,2431.2,2430.5,3.2078]
[1728346234370,3.2078,2431.3,2431.1,3.21]
[1728346234661,0.6082,2432.0,2431.2,1.65]
[1728346234662,3.2078,2431.6,2431.2,1.65]
[1728346234874,3.2078,2431.9,2431.5,3.21]
[1728346235062,3.2078,2431.9,2431.8,3.21]
[1728346235255,3.61906,2431.9,2431.8,3.21]
[1728346235662,3.2078,2431.9,2431.8,3.21]
[1728346236258,0.41123,2432.1,2431.8,3.21]
[1728346236463,1.02799,2432.3,2431.8,3.95]
[1728346236766,0.41126,2431.9,2431.8,3.95]
[1728346237267,1.02799,2432.3,2431.8,3.95]
[1728346237672,0.41126,2431.9,2431.8,3.95]
[1728346237863,1.02803,2432.2,2431.8,3.95]
[1728346238058,0.41126,2431.9,2431.8,3.95]
[1728346238265,3.2078,2432.4,2431.5,3.95]
[1728346238460,3.2078,2432.4,2431.3,3.2078]
[1728346238764,0.4256,2432.5,2431.2,6.2222]
[1728346238765,0.41134,2431.5,2431.2,6.2222]
[1728346238963,1.02822,2431.8,2431.2,6.0152]
[1728346239173,0.41133,2431.5,2431.2,6.0152]
[1728346239372,0.41132,2431.6,2431.2,6.42658]
[1728346239558,0.41133,2431.5,2431.2,6.0152]
[1728346240074,0.41132,2431.6,2431.2,6.42657]
[1728346240263,0.4008,2431.9,2431.2,6.0152]
[1728346240577,3.2078,2432.1,2431.4,3.95]
[1728346240765,0.4135,2432.4,2431.4,3.95]
[1728346241068,0.41124,2432.1,2431.7,4.36128]
[1728346241265,0.41122,2432.2,2431.8,0.41127]
[1728346241576,0.4135,2432.4,2431.9,0.4249]
[1728346241870,0.41124,2432.0,2431.9,0.4249]
[1728346242070,0.41123,2432.1,2431.9,0.4249]
[1728346242467,0.4135,2432.4,2431.9,0.4249]
[1728346242667,0.41122,2432.2,2431.9,0.4249]
[1728346243173,0.41121,2432.2,2431.9,0.4249]
[1728346243673,4.23571,2432.5,2431.9,0.4249]
[1728346243874,0.4112,2432.3,2432.0,0.41124]
[1728346244576,0.4112,2432.3,2432.0,4.36124]
[1728346244870,1.02784,2432.7,2432.0,4.36124]
[1728346245074,0.41119,2432.3,2432.0,4.36124]
[1728346245379,0.41119,2432.3,2432.0,3.95]
[1728346245765,0.41119,2432.3,2432.0,4.36123]
[1728346246576,1.02784,2432.7,2431.9,0.4249]
[1728346246577,0.41124,2432.1,2431.9,0.4249]
[1728346246776,3.2078,2432.4,2431.9,0.4249]
[1728346247072,0.41124,2432.0,2431.9,0.4249]
[1728346247472,0.41124,2432.0,2431.9,4.5369]
[1728346248466,0.41122,2432.2,2432.0,0.41123]
[1728346248673,0.41122,2432.2,2431.9,0.4249]
[1728346248881,0.41123,2432.1,2431.9,0.83615]
[1728346249175,0.41122,2432.2,2431.9,0.83615]
[1728346249568,0.4112,2432.3,2432.0,0.41123]
[1728346249771,1.02786,2432.6,2432.0,0.41123]
[1728346249974,0.41122,2432.2,2432.0,0.41123]
[1728346250274,0.41122,2432.2,2431.9,0.83615]
[1728346250476,0.41118,2432.4,2432.1,4.36122]
[1728346250772,1.02781,2432.7,2432.1,3.95]
[1728346250773,0.4112,2432.3,2432.1,3.95]
[1728346251479,1.02786,2432.6,2432.1,4.36122]
[1728346251876,0.41118,2432.4,2432.1,4.36122]
[1728346252068,0.41117,2432.4,2432.1,4.36121]
[1728346252571,4.2356,2432.8,2432.1,3.95]
[1728346252772,0.41119,2432.4,2432.1,4.36122]
[1728346252972,0.4112,2432.3,2432.1,3.95]
[1728346253274,0.4112,2432.3,2432.1,4.36122]
[1728346254177,0.41118,2432.4,2432.2,0.4112]
[1728346254380,0.41118,2432.4,2432.1,3.95]
[1728346254381,0.41115,2432.6,2432.3,0.3905]
[1728346254576,0.41115,2432.6,2432.4,0.41117]
[1728346254778,4.23557,2432.8,2432.5,1.649]
[1728346254779,3.2078,2432.8,2432.5,1.649]
[1728346254981,0.41108,2433.0,2432.7,3.95]
[1728346255177,0.41108,2433.0,2432.7,4.36111]
[1728346255376,44.8218,2433.4,2432.7,3.95]
[1728346255579,1.0276,2433.2,2432.7,3.95]
[1728346255774,0.41108,2433.0,2432.7,4.36111]
[1728346256079,4.0218,2433.4,2432.7,4.36111]
[1728346256080,0.41107,2433.1,2432.8,0.41111]
[1728346256282,4.64184,2433.4,2432.7,3.95]
[1728346256479,4.0253,2433.4,2433.3,3.21]
[1728346257576,0.8175,2433.4,2433.3,3.21]
[1728346259285,4.0253,2433.4,2433.3,3.21]
[1728346259472,0.41104,2433.2,2433.1,3.21]
[1728346259677,0.41107,2433.0,2432.9,3.21]
[1728346262272,0.41104,2433.3,2433.0,0.41107]
[1728346262481,0.41101,2433.4,2433.2,3.21]
[1728346262683,0.41099,2433.5,2433.3,0.4263]
[1728346262987,0.41099,2433.5,2433.4,3.21]
[1728346264492,0.41099,2433.5,2433.4,3.95]
[1728346265180,0.41099,2433.5,2433.4,8.0596]
[1728346266986,3.2078,2433.7,2433.4,14.0596]
[1728346267191,3.2078,2433.7,2433.5,4.52058]
[1728346267689,3.2078,2433.7,2433.6,4.1088]
[1728346267891,3.2078,2433.7,2433.6,4.51977]
[1728346268482,3.2078,2433.7,2433.6,10.51977]
[1728346268783,0.61784,2434.4,2433.7,1.02739]
[1728346268986,0.83113,2434.5,2434.2,0.41086]
[1728346269296,0.3959,2435.0,2434.2,0.41086]
[1728346269297,0.41073,2435.1,2434.7,0.41078]
[1728346269597,0.4203,2435.4,2434.9,3.95]
[1728346269790,0.41068,2435.3,2434.9,3.95]
[1728346270087,0.4203,2435.4,2434.9,3.95]
[1728346270292,0.41073,2435.0,2434.9,3.95]
[1728346270487,0.41071,2435.2,2434.9,3.95]
[1728346270890,0.4203,2435.4,2434.7,3.2078]
[1728346271187,0.4203,2435.4,2434.3,0.4258]
[1728346271188,0.41082,2434.6,2434.3,4.3758]
[1728346271392,0.41082,2434.5,2434.3,7.5836]
[1728346272099,0.41084,2434.4,2434.3,3.2078]
[1728346272987,0.41083,2434.5,2434.3,3.2078]
[1728346273191,0.41084,2434.4,2434.3,3.2078]
[1728346273388,1.83862,2434.9,2434.1,3.95]
[1728346273595,0.41087,2434.2,2434.1,3.95]
[1728346276098,3.2078,2434.8,2434.2,0.41086]
[1728346276285,0.3905,2434.7,2434.4,3.95]
[1728346276488,0.80129,2434.7,2434.4,3.95]
[1728346276794,0.41081,2434.6,2434.4,3.95]
[1728346276982,0.41082,2434.6,2434.4,3.95]
[1728346277790,0.80129,2434.7,2434.4,3.95]
[1728346278495,0.4108,2434.6,2434.4,3.95]
[1728346278896,0.3905,2434.7,2434.4,3.95]
[1728346279096,0.8013,2434.7,2434.4,3.95]
[1728346279404,0.41077,2434.8,2434.5,9.27659186]
[1728346279595,0.41076,2434.9,2434.7,3.95]
[1728346279801,0.4075,2435.2,2434.7,3.95]
[1728346279992,0.41077,2434.8,2434.7,3.95]
[1728346280495,0.41076,2434.9,2434.7,3.95]
[1728346280687,1.0268,2435.1,2434.7,3.95]
[1728346280895,0.41077,2434.9,2434.7,3.95]
[1728346281094,1.0268,2435.1,2434.7,3.95]
[1728346281394,1.02689,2434.9,2434.4,3.95]
[1728346281703,0.41085,2434.3,2434.2,3.2078]
[1728346281996,0.41087,2434.2,2434.1,3.95]
[1728346283009,0.41087,2434.3,2434.1,3.95]
[1728346283192,0.41087,2434.2,2434.1,3.95]
[1728346286198,0.4109,2434.0,2433.9,3.2078]
[1728346286408,0.385,2434.1,2433.6,4.197]
[1728346286595,0.41097,2433.7,2433.5,3.95]
[1728346286791,3.2078,2434.4,2433.5,3.95]
[1728346286998,0.41085,2434.4,2434.1,0.41088]
[1728346287193,0.41089,2434.2,2434.0,3.95]
[1728346287393,1.02701,2434.6,2434.0,7.1578]
[1728346287592,1.0271,2434.4,2434.0,7.1578]
[1728346287793,0.41089,2434.1,2434.0,3.2078]
[1728346287998,1.02716,2434.3,2433.8,3.95]
[1728346288194,0.385,2434.2,2433.8,3.95]
[1728346288498,0.41089,2434.1,2433.8,3.95]
[1728346288699,0.41089,2434.1,2433.8,4.36093]
[1728346289291,0.41091,2434.0,2433.8,3.95]
[1728346290204,0.385,2434.2,2433.8,3.95]
[1728346290393,0.4109,2434.1,2433.8,3.95]
[1728346290595,3.61863,2434.5,2434.2,0.41086]
[1728346290798,0.41083,2434.5,2434.1,3.95]
[1728346290998,0.41083,2434.5,2434.3,0.41085]
[1728346291197,0.41083,2434.5,2434.1,3.95]
[1728346291502,0.4131,2434.6,2434.3,0.41084]
[1728346291503,0.82391,2434.6,2434.3,0.41084]
[1728346291699,0.41082,2434.5,2434.3,0.41084]
[1728346291894,0.82391,2434.6,2434.3,0.41084]
[1728346292194,0.4162,2434.9,2434.5,3.95]
[1728346292397,0.4067,2435.0,2434.6,3.2078]
[1728346292597,1.02667,2435.5,2434.8,3.95]
[1728346292598,0.4099,2435.4,2434.8,3.95]
[1728346292792,0.41078,2434.7,2434.6,3.2078]
[1728346293204,0.41078,2434.8,2434.6,3.2078]
[1728346293403,0.4067,2434.9,2434.7,3.95]
[1728346293606,4.64438,2435.4,2434.8,0.41077]
[1728346293804,0.41073,2435.1,2434.8,0.41077]
[1728346294404,0.41075,2434.9,2434.7,4.36078]
[1728346294800,0.41075,2435.0,2434.7,4.36078]
[1728346296003,0.4067,2435.3,2434.7,3.95]
[1728346296204,0.41074,2435.0,2434.7,4.36078]
[1728346296402,0.41073,2435.1,2434.8,0.41076]
[1728346296604,1.43344,2435.3,2434.8,0.41076]
[1728346296605,0.41073,2435.0,2434.8,0.41076]
[1728346297003,0.41075,2435.0,2434.7,4.36077]
[1728346297301,1.02676,2435.2,2434.7,4.36077]
[1728346297608,0.41075,2435.0,2434.7,4.36077]
[1728346298404,0.207,2435.9,2434.9,4.23466]
[1728346298609,3.2078,2436.0,2435.5,0.41065]
[1728346298610,0.41061,2435.8,2435.5,0.41065]
[1728346299003,0.41059,2435.9,2435.6,0.41062]
[1728346299302,0.387,2436.1,2435.5,3.2078]
[1728346299509,0.41063,2435.6,2435.5,3.2078]
[1728346299712,0.41062,2435.7,2435.4,2.05367]
[1728346299912,0.4106,2435.9,2435.5,0.41064]
[1728346300108,0.41059,2435.9,2435.6,4.36063]
[1728346300407,0.4106,2435.8,2435.6,3.95]
[1728346300600,1.02639,2436.1,2435.6,3.95]
[1728346300801,0.41059,2435.9,2435.6,3.95]
[1728346300997,1.02639,2436.1,2435.6,3.95]
[1728346301208,3.2078,2436.4,2435.6,3.95]
[1728346301401,0.41059,2435.9,2435.6,4.36063]
[1728346302206,3.2078,2436.4,2435.6,4.36063]
[1728346302401,0.4106,2435.8,2435.6,3.95]
[1728346302714,1.02637,2436.2,2435.6,3.95]
[1728346302907,3.2078,2436.4,2435.6,3.95]
[1728346303107,0.41057,2436.0,2435.7,0.41062]
[1728346303611,0.41057,2436.0,2435.6,3.95]
[1728346303808,0.41059,2435.9,2435.6,4.36062]
[1728346304008,6.26323137,2436.5,2435.6,3.95]
[1728346304009,5.23701137,2436.5,2435.6,3.95]
[1728346304306,0.41061,2435.8,2435.6,5.593]
[1728346304510,0.41062,2435.7,2435.6,3.95]
[1728346306409,0.8335,2435.9,2435.6,3.95]
[1728346306600,0.41061,2435.8,2435.6,3.95]
[1728346306800,5.23701137,2436.5,2435.6,3.95]
[1728346306801,0.00652018,2436.5,2435.7,4.1056]
[1728346307007,0.41700018,2436.5,2436.4,3.95]
[1728346307213,0.41700018,2436.5,2436.4,8.054]
[1728346307411,0.41700018,2436.5,2436.4,3.95]
[1728346308213,0.00652018,2436.5,2436.4,3.95]
[1728346309118,0.4105,2436.4,2436.3,3.2078]
[1728346309418,0.41053,2436.2,2436.1,4.3719]
[1728346309619,0.41053,2436.2,2435.8,2.46689]
[1728346309620,0.4264,2436.4,2435.8,4.3643]
[1728346309922,0.41058,2436.0,2435.8,4.3643]
[1728346310119,0.4264,2436.4,2435.8,4.3643]
[1728346310310,0.4264,2436.4,2436.2,3.95]
[1728346310511,0.4264,2436.4,2436.2,4.36053]
[1728346310812,0.00652018,2436.5,2436.2,3.95]
[1728346311014,0.00652018,2436.5,2436.3,1.22981]
[1728346311416,0.41701018,2436.5,2436.3,4.0271]